[Event "Titled Tuesday Blitz July 18 Late 2023"]
[White "Perez Ponsa, Federico"]
[Black "Bagrationi, Alexander"]
[WhiteFideId "117927"]
[BlackFideId "14104954"]
[WhiteElo "2829"]
[BlackElo "2540"]
[Result "1/2-1/2"]
[Round "3"]
[TimeControl "180+2"]
[Date "2023.07.18"]
[WhiteClock "0:00:13"]
[BlackClock "0:00:55"]
[Board "30"]

1. e4 {[%clk 0:02:52]}  c5 {[%clk 0:02:59]} 2. Nf3 {[%clk 0:02:52]}  Nc6 {[%clk 0:02:59]} 3. d4 {[%clk 0:02:50]}  cxd4 {[%clk 0:02:59]} 4. Nxd4 {[%clk 0:02:51]}  g6 {[%clk 0:03:00]} 5. c4 {[%clk 0:02:51]}  Bg7 {[%clk 0:03:00]} 6. Be3 {[%clk 0:02:51]}  Nf6 {[%clk 0:03:01]} 7. Nc3 {[%clk 0:02:51]}  Ng4 {[%clk 0:03:01]} 8. Qxg4 {[%clk 0:02:51]}  Nxd4 {[%clk 0:03:02]} 9. Qd1 {[%clk 0:02:51]}  Ne6 {[%clk 0:03:02]} 10. Rc1 {[%clk 0:02:51]}  Qa5 {[%clk 0:03:03]} 11. Be2 {[%clk 0:02:50]}  b6 {[%clk 0:03:03]} 12. O-O {[%clk 0:02:50]}  Bb7 {[%clk 0:03:03]} 13. f3 {[%clk 0:02:48]}  g5 {[%clk 0:03:00]} 14. a3 {[%clk 0:02:47]}  Be5 {[%clk 0:02:59]} 15. Nd5 {[%clk 0:02:47]}  Bf4 {[%clk 0:02:45]} 16. Nxf4 {[%clk 0:02:28]}  gxf4 {[%clk 0:02:45]} 17. Bf2 {[%clk 0:02:29]}  Rc8 {[%clk 0:02:41]} 18. Kh1 {[%clk 0:02:21]}  Rg8 {[%clk 0:02:39]} 19. Re1 {[%clk 0:02:16]}  Qg5 {[%clk 0:02:31]} 20. Bf1 {[%clk 0:02:14]}  d6 {[%clk 0:02:27]} 21. Qa4+ {[%clk 0:02:02]}  Bc6 {[%clk 0:02:26]} 22. Qxa7 {[%clk 0:02:02]}  Rc7 {[%clk 0:02:21]} 23. Qb8+ {[%clk 0:01:51]}  Kd7 {[%clk 0:02:20]} 24. Qxb6 {[%clk 0:01:51]}  Rb7 {[%clk 0:02:20]} 25. Qa6 {[%clk 0:01:49]}  Rxb2 {[%clk 0:02:19]} 26. c5 {[%clk 0:01:18]}  Rxf2 {[%clk 0:02:12]} 27. cxd6 {[%clk 0:01:16]}  Rxf1+ {[%clk 0:02:05]} 28. Qxf1 {[%clk 0:01:11]}  exd6 {[%clk 0:02:05]} 29. Qf2 {[%clk 0:01:02]}  Nc5 {[%clk 0:02:00]} 30. e5 {[%clk 0:00:59]}  Ra8 {[%clk 0:01:53]} 31. Rxc5 {[%clk 0:00:51]}  dxc5 {[%clk 0:01:49]} 32. Qxc5 {[%clk 0:00:52]}  Qg6 {[%clk 0:01:45]} 33. Rd1+ {[%clk 0:00:36]}  Ke8 {[%clk 0:01:46]} 34. h3 {[%clk 0:00:28]}  Rd8 {[%clk 0:01:41]} 35. Rxd8+ {[%clk 0:00:22]}  Kxd8 {[%clk 0:01:41]} 36. Qd4+ {[%clk 0:00:23]}  Kc7 {[%clk 0:01:36]} 37. Qxf4 {[%clk 0:00:23]}  Qe6 {[%clk 0:01:32]} 38. Kh2 {[%clk 0:00:23]}  h6 {[%clk 0:01:27]} 39. h4 {[%clk 0:00:24]}  Kd7 {[%clk 0:01:23]} 40. g4 {[%clk 0:00:23]}  Ke7 {[%clk 0:01:23]} 41. Kg3 {[%clk 0:00:23]}  Kf8 {[%clk 0:01:23]} 42. h5 {[%clk 0:00:20]}  Kg7 {[%clk 0:01:23]} 43. g5 {[%clk 0:00:20]}  hxg5 {[%clk 0:01:22]} 44. Qxg5+ {[%clk 0:00:21]}  Kh7 {[%clk 0:01:22]} 45. Qf4 {[%clk 0:00:16]}  Kg7 {[%clk 0:01:06]} 46. Qg5+ {[%clk 0:00:15]}  Kh7 {[%clk 0:01:06]} 47. Qf4 {[%clk 0:00:16]}  Kg7 {[%clk 0:01:05]} 48. a4 {[%clk 0:00:15]}  Bxa4 {[%clk 0:01:01]} 49. Qxa4 {[%clk 0:00:15]}  Qxe5+ {[%clk 0:01:01]} 50. Kg4 {[%clk 0:00:14]}  Qe6+ {[%clk 0:00:58]} 51. Kh4 {[%clk 0:00:15]}  Qf6+ {[%clk 0:00:58]} 52. Kg3 {[%clk 0:00:14]}  Qe5+ {[%clk 0:00:57]} 53. Qf4 {[%clk 0:00:10]}  Qxh5 {[%clk 0:00:57]} 54. Qg4+ {[%clk 0:00:11]}  Qxg4+ {[%clk 0:00:56]} 55. Kxg4 {[%clk 0:00:11]}  Kg6 {[%clk 0:00:56]} 56. Kf4 {[%clk 0:00:12]}  Kf6 {[%clk 0:00:56]} 57. Kg4 {[%clk 0:00:13]}  Kg6 {[%clk 0:00:54]} 58. Kf4 {[%clk 0:00:13]}  Kf6 {[%clk 0:00:54]} 59. Kg4 {[%clk 0:00:13]}  Kg6 {[%clk 0:00:55]} 1/2-1/2


[Site "https://www.chess.com"]

[Event "Titled Tuesday Blitz July 18 Late 2023"]
[White "Garakov, Mikhael"]
[Black "Karacsonyi, Gellert"]
[WhiteFideId "4169034"]
[BlackFideId "764620"]
[WhiteElo "2531"]
[BlackElo "2818"]
[Result "0-1"]
[Round "3"]
[TimeControl "180+2"]
[Date "2023.07.18"]
[WhiteClock "0:00:18"]
[BlackClock "0:00:20"]
[Board "31"]

1. e4 {[%clk 0:02:59]}  c5 {[%clk 0:02:59]} 2. Nf3 {[%clk 0:02:59]}  Nc6 {[%clk 0:03:00]} 3. Bb5 {[%clk 0:02:59]}  g6 {[%clk 0:03:00]} 4. O-O {[%clk 0:02:57]}  Bg7 {[%clk 0:03:01]} 5. Nc3 {[%clk 0:02:58]}  e5 {[%clk 0:03:01]} 6. d3 {[%clk 0:02:52]}  Nge7 {[%clk 0:03:01]} 7. Nd5 {[%clk 0:02:50]}  O-O {[%clk 0:02:57]} 8. Bg5 {[%clk 0:02:50]}  f6 {[%clk 0:02:58]} 9. Be3 {[%clk 0:02:50]}  d6 {[%clk 0:02:58]} 10. Nd2 {[%clk 0:02:25]}  g5 {[%clk 0:02:40]} 11. Bc4 {[%clk 0:02:07]}  Kh8 {[%clk 0:02:40]} 12. a4 {[%clk 0:02:07]}  Nxd5 {[%clk 0:02:29]} 13. Bxd5 {[%clk 0:02:05]}  Ne7 {[%clk 0:02:30]} 14. Bc4 {[%clk 0:02:01]}  Ng6 {[%clk 0:02:28]} 15. c3 {[%clk 0:01:54]}  Bd7 {[%clk 0:02:29]} 16. b4 {[%clk 0:01:53]}  Qc8 {[%clk 0:02:24]} 17. Rb1 {[%clk 0:01:43]}  b6 {[%clk 0:02:22]} 18. bxc5 {[%clk 0:01:41]}  dxc5 {[%clk 0:02:12]} 19. Bd5 {[%clk 0:01:40]}  Rb8 {[%clk 0:02:12]} 20. Nc4 {[%clk 0:01:39]}  Bg4 {[%clk 0:02:10]} 21. f3 {[%clk 0:01:37]}  Be6 {[%clk 0:02:10]} 22. Qb3 {[%clk 0:01:21]}  Bxd5 {[%clk 0:02:03]} 23. exd5 {[%clk 0:01:21]}  g4 {[%clk 0:02:04]} 24. Nd6 {[%clk 0:00:58]}  Qd7 {[%clk 0:02:02]} 25. Ne4 {[%clk 0:00:58]}  f5 {[%clk 0:01:55]} 26. Ng5 {[%clk 0:00:58]}  Bh6 {[%clk 0:01:51]} 27. Rbe1 {[%clk 0:00:55]}  f4 {[%clk 0:01:50]} 28. Ne6 {[%clk 0:00:50]}  fxe3 {[%clk 0:01:50]} 29. Nxf8 {[%clk 0:00:49]}  Rxf8 {[%clk 0:01:50]} 30. fxg4 {[%clk 0:00:46]}  Rxf1+ {[%clk 0:01:49]} 31. Rxf1 {[%clk 0:00:44]}  e2 {[%clk 0:01:50]} 32. Re1 {[%clk 0:00:43]}  Be3+ {[%clk 0:01:48]} 33. Kh1 {[%clk 0:00:42]}  Qxg4 {[%clk 0:01:49]} 34. Qc4 {[%clk 0:00:40]}  Bf4 {[%clk 0:00:43]} 35. Qe4 {[%clk 0:00:36]}  Qh4 {[%clk 0:00:36]} 36. g3 {[%clk 0:00:37]}  Bxg3 {[%clk 0:00:36]} 37. Rxe2 {[%clk 0:00:36]}  Bf4 {[%clk 0:00:29]} 38. d4 {[%clk 0:00:30]}  Qh3 {[%clk 0:00:28]} 39. Kg1 {[%clk 0:00:25]}  Nh4 {[%clk 0:00:25]} 40. d6 {[%clk 0:00:18]}  Nf3+ {[%clk 0:00:22]} 41. Kf2 {[%clk 0:00:18]}  Qxh2+ {[%clk 0:00:19]} 42. Kxf3 {[%clk 0:00:18]}  Qg3# {[%clk 0:00:20]} 0-1


[Site "https://www.chess.com"]

[Event "Titled Tuesday Blitz July 18 Late 2023"]
[White "Skvortsov, Andrei"]
[Black "Droin, Augustin"]
[WhiteFideId "24108600"]
[BlackFideId "45105987"]
[WhiteElo "2806"]
[BlackElo "2528"]
[Result "1-0"]
[Round "3"]
[TimeControl "180+2"]
[Date "2023.07.18"]
[WhiteClock "0:00:24"]
[BlackClock "0:00:10"]
[Board "32"]

1. e4 {[%clk 0:03:00]}  c5 {[%clk 0:02:58]} 2. d4 {[%clk 0:02:59]}  cxd4 {[%clk 0:02:57]} 3. Qxd4 {[%clk 0:03:00]}  Nc6 {[%clk 0:02:56]} 4. Qd3 {[%clk 0:03:00]}  Nf6 {[%clk 0:02:52]} 5. Nc3 {[%clk 0:02:58]}  e6 {[%clk 0:02:44]} 6. Bf4 {[%clk 0:02:58]}  e5 {[%clk 0:02:35]} 7. Bg5 {[%clk 0:02:57]}  Be7 {[%clk 0:02:35]} 8. O-O-O {[%clk 0:02:54]}  O-O {[%clk 0:02:34]} 9. Bxf6 {[%clk 0:02:53]}  Bxf6 {[%clk 0:02:33]} 10. Nd5 {[%clk 0:02:54]}  d6 {[%clk 0:02:32]} 11. g3 {[%clk 0:02:49]}  Be6 {[%clk 0:02:31]} 12. h4 {[%clk 0:02:46]}  Rc8 {[%clk 0:02:30]} 13. c3 {[%clk 0:02:43]}  Qa5 {[%clk 0:01:56]} 14. Kb1 {[%clk 0:02:39]}  Bxd5 {[%clk 0:01:54]} 15. Qxd5 {[%clk 0:02:36]}  Qxd5 {[%clk 0:01:54]} 16. Rxd5 {[%clk 0:02:36]}  Rfd8 {[%clk 0:01:54]} 17. Bh3 {[%clk 0:02:36]}  Rc7 {[%clk 0:01:54]} 18. Ne2 {[%clk 0:02:36]}  Be7 {[%clk 0:01:46]} 19. Rhd1 {[%clk 0:02:36]}  g6 {[%clk 0:01:46]} 20. Nc1 {[%clk 0:02:32]}  Bf8 {[%clk 0:01:44]} 21. Nd3 {[%clk 0:02:29]}  Re8 {[%clk 0:01:44]} 22. Ne1 {[%clk 0:02:27]}  Nb8 {[%clk 0:01:41]} 23. Nc2 {[%clk 0:02:27]}  Na6 {[%clk 0:01:39]} 24. f3 {[%clk 0:02:19]}  Nc5 {[%clk 0:01:37]} 25. Ne3 {[%clk 0:02:17]}  Ne6 {[%clk 0:01:37]} 26. Bf1 {[%clk 0:02:15]}  Rc5 {[%clk 0:01:36]} 27. R5d3 {[%clk 0:02:07]}  Kg7 {[%clk 0:01:34]} 28. Nd5 {[%clk 0:02:06]}  a5 {[%clk 0:01:30]} 29. b4 {[%clk 0:02:05]}  axb4 {[%clk 0:01:29]} 30. cxb4 {[%clk 0:02:06]}  Rcc8 {[%clk 0:01:27]} 31. Bh3 {[%clk 0:02:03]}  Red8 {[%clk 0:01:22]} 32. Rc1 {[%clk 0:01:57]}  Rxc1+ {[%clk 0:01:22]} 33. Kxc1 {[%clk 0:01:58]}  Nd4 {[%clk 0:01:21]} 34. Kb2 {[%clk 0:01:56]}  f5 {[%clk 0:01:20]} 35. Rc3 {[%clk 0:01:53]}  Rd7 {[%clk 0:01:17]} 36. Ne3 {[%clk 0:01:51]}  Rf7 {[%clk 0:01:17]} 37. exf5 {[%clk 0:01:49]}  gxf5 {[%clk 0:01:16]} 38. Nd5 {[%clk 0:01:47]}  Be7 {[%clk 0:01:14]} 39. a4 {[%clk 0:01:41]}  f4 {[%clk 0:01:10]} 40. gxf4 {[%clk 0:01:41]}  Bxh4 {[%clk 0:01:09]} 41. fxe5 {[%clk 0:01:40]}  dxe5 {[%clk 0:01:10]} 42. Bg4 {[%clk 0:01:35]}  Kg6 {[%clk 0:01:11]} 43. b5 {[%clk 0:01:08]}  h5 {[%clk 0:01:09]} 44. Bc8 {[%clk 0:01:06]}  Bd8 {[%clk 0:00:58]} 45. b6 {[%clk 0:01:00]}  Nxf3 {[%clk 0:00:57]} 46. Be6 {[%clk 0:00:58]}  Rf8 {[%clk 0:00:54]} 47. a5 {[%clk 0:00:58]}  Nd4 {[%clk 0:00:46]} 48. Bc8 {[%clk 0:00:53]}  Nb5 {[%clk 0:00:42]} 49. Rg3+ {[%clk 0:00:51]}  Kh6 {[%clk 0:00:42]} 50. Bxb7 {[%clk 0:00:50]}  h4 {[%clk 0:00:42]} 51. Rg2 {[%clk 0:00:47]}  Nd4 {[%clk 0:00:32]} 52. a6 {[%clk 0:00:43]}  Nb5 {[%clk 0:00:24]} 53. a7 {[%clk 0:00:29]}  Bxb6 {[%clk 0:00:24]} 54. a8=Q {[%clk 0:00:29]}  Rxa8 {[%clk 0:00:25]} 55. Bxa8 {[%clk 0:00:30]}  Bd4+ {[%clk 0:00:25]} 56. Kc2 {[%clk 0:00:30]}  Nd6 {[%clk 0:00:25]} 57. Nf6 {[%clk 0:00:29]}  Nf5 {[%clk 0:00:21]} 58. Kd3 {[%clk 0:00:26]}  Ne3 {[%clk 0:00:15]} 59. Ng4+ {[%clk 0:00:25]}  Nxg4 {[%clk 0:00:14]} 60. Rxg4 {[%clk 0:00:25]}  Kh5 {[%clk 0:00:10]} 61. Bf3 {[%clk 0:00:24]} 1-0


[Site "https://www.chess.com"]

[Event "Titled Tuesday Blitz July 18 Late 2023"]
[White "Elsa167"]
[Black "Haszon, David"]
[BlackFideId "733610"]
[WhiteElo "2790"]
[BlackElo "2521"]
[Result "1-0"]
[Round "3"]
[TimeControl "180+2"]
[Date "2023.07.18"]
[WhiteClock "0:01:09"]
[BlackClock "0:00:53"]
[Board "34"]

1. d4 {[%clk 0:03:00]}  Nf6 {[%clk 0:03:00]} 2. c4 {[%clk 0:03:01]}  e6 {[%clk 0:03:00]} 3. Nf3 {[%clk 0:03:01]}  d5 {[%clk 0:02:59]} 4. Nc3 {[%clk 0:03:01]}  Be7 {[%clk 0:03:00]} 5. g3 {[%clk 0:02:59]}  O-O {[%clk 0:02:59]} 6. Bg2 {[%clk 0:03:00]}  c6 {[%clk 0:02:59]} 7. O-O {[%clk 0:02:59]}  Nbd7 {[%clk 0:03:00]} 8. Qd3 {[%clk 0:02:56]}  a6 {[%clk 0:02:53]} 9. e4 {[%clk 0:02:54]}  dxc4 {[%clk 0:02:52]} 10. Qxc4 {[%clk 0:02:54]}  Qa5 {[%clk 0:02:33]} 11. Bg5 {[%clk 0:02:46]}  h6 {[%clk 0:02:30]} 12. Bf4 {[%clk 0:02:36]}  c5 {[%clk 0:02:26]} 13. e5 {[%clk 0:02:06]}  Nh5 {[%clk 0:02:24]} 14. Bd2 {[%clk 0:02:00]}  cxd4 {[%clk 0:02:19]} 15. Qxd4 {[%clk 0:01:59]}  f5 {[%clk 0:01:28]} 16. Ne4 {[%clk 0:01:11]}  Qb6 {[%clk 0:01:21]} 17. Qxb6 {[%clk 0:01:09]}  Nxb6 {[%clk 0:01:22]} 18. Nd6 {[%clk 0:01:10]}  Rd8 {[%clk 0:01:11]} 19. Ba5 {[%clk 0:01:09]}  Bxd6 {[%clk 0:00:53]} 20. Bxb6 {[%clk 0:01:09]} 1-0


[Site "https://www.chess.com"]

[Event "Titled Tuesday Blitz July 18 Late 2023"]
[White "Diano, Eden"]
[Black "Kadric, Denis"]
[WhiteFideId "5203708"]
[BlackFideId "14403803"]
[WhiteElo "2502"]
[BlackElo "2789"]
[Result "1-0"]
[Round "3"]
[TimeControl "180+2"]
[Date "2023.07.18"]
[WhiteClock "0:00:06"]
[BlackClock "0:00:00"]
[Board "35"]

1. d4 {[%clk 0:02:59]}  d6 {[%clk 0:03:00]} 2. c4 {[%clk 0:02:59]}  e5 {[%clk 0:03:00]} 3. d5 {[%clk 0:02:58]}  a5 {[%clk 0:03:00]} 4. e4 {[%clk 0:02:58]}  Na6 {[%clk 0:03:00]} 5. Be3 {[%clk 0:02:58]}  g6 {[%clk 0:02:58]} 6. Nc3 {[%clk 0:02:57]}  Bh6 {[%clk 0:02:56]} 7. Bxh6 {[%clk 0:02:56]}  Nxh6 {[%clk 0:02:57]} 8. Qd2 {[%clk 0:02:56]}  Ng4 {[%clk 0:02:56]} 9. f3 {[%clk 0:02:55]}  Nf6 {[%clk 0:02:54]} 10. Nge2 {[%clk 0:02:54]}  Nc5 {[%clk 0:02:53]} 11. Nc1 {[%clk 0:02:54]}  O-O {[%clk 0:02:52]} 12. Nd3 {[%clk 0:02:54]}  Nfd7 {[%clk 0:02:52]} 13. b3 {[%clk 0:02:52]}  f5 {[%clk 0:02:50]} 14. Qh6 {[%clk 0:02:28]}  fxe4 {[%clk 0:02:37]} 15. fxe4 {[%clk 0:02:23]}  Nxd3+ {[%clk 0:02:36]} 16. Bxd3 {[%clk 0:02:22]}  Nc5 {[%clk 0:02:37]} 17. Be2 {[%clk 0:02:17]}  Bd7 {[%clk 0:02:03]} 18. Kd2 {[%clk 0:02:16]}  Rf2 {[%clk 0:02:02]} 19. Rhg1 {[%clk 0:02:11]}  Qe7 {[%clk 0:01:49]} 20. Raf1 {[%clk 0:02:06]}  Raf8 {[%clk 0:01:48]} 21. g3 {[%clk 0:01:49]}  Bg4 {[%clk 0:01:35]} 22. Ke3 {[%clk 0:01:32]}  Rxf1 {[%clk 0:01:01]} 23. Rxf1 {[%clk 0:01:29]}  Rxf1 {[%clk 0:01:00]} 24. Bxf1 {[%clk 0:01:29]}  Qf6 {[%clk 0:00:45]} 25. Bg2 {[%clk 0:01:21]}  Bd7 {[%clk 0:00:37]} 26. h4 {[%clk 0:01:07]}  Na6 {[%clk 0:00:24]} 27. Qg5 {[%clk 0:00:49]}  Qf8 {[%clk 0:00:24]} 28. h5 {[%clk 0:00:34]}  Kg7 {[%clk 0:00:25]} 29. hxg6 {[%clk 0:00:32]}  hxg6 {[%clk 0:00:26]} 30. Bf3 {[%clk 0:00:32]}  Nb4 {[%clk 0:00:25]} 31. Bh5 {[%clk 0:00:26]}  Be8 {[%clk 0:00:21]} 32. Nb5 {[%clk 0:00:21]}  Qf1 {[%clk 0:00:21]} 33. Qe7+ {[%clk 0:00:11]}  Kh6 {[%clk 0:00:20]} 34. Be2 {[%clk 0:00:08]}  Qc1+ {[%clk 0:00:05]} 35. Kf2 {[%clk 0:00:08]}  Nc2 {[%clk 0:00:03]} 36. Qxe8 {[%clk 0:00:05]}  Qe3+ {[%clk 0:00:02]} 37. Kf1 {[%clk 0:00:05]}  Qc1+ {[%clk 0:00:00]} 38. Kg2 {[%clk 0:00:06]} 1-0


[Site "https://www.chess.com"]

[Event "Titled Tuesday Blitz July 18 Late 2023"]
[White "Morefield, Jason"]
[Black "Garcia Cuenca, Victor"]
[WhiteFideId "30920825"]
[BlackFideId "2250829"]
[WhiteElo "2766"]
[BlackElo "2411"]
[Result "1-0"]
[Round "3"]
[TimeControl "180+2"]
[Date "2023.07.18"]
[WhiteClock "0:00:21"]
[BlackClock "0:00:00"]
[Board "37"]

1. e4 {[%clk 0:03:00]}  e6 {[%clk 0:02:58]} 2. d4 {[%clk 0:03:00]}  c5 {[%clk 0:02:58]} 3. d5 {[%clk 0:02:57]}  exd5 {[%clk 0:02:57]} 4. exd5 {[%clk 0:02:58]}  d6 {[%clk 0:02:57]} 5. Nf3 {[%clk 0:02:58]}  Be7 {[%clk 0:02:57]} 6. Bd3 {[%clk 0:02:56]}  Nf6 {[%clk 0:02:58]} 7. c4 {[%clk 0:02:54]}  O-O {[%clk 0:02:56]} 8. h3 {[%clk 0:02:55]}  Re8 {[%clk 0:02:49]} 9. O-O {[%clk 0:02:55]}  h6 {[%clk 0:02:50]} 10. Nc3 {[%clk 0:02:55]}  Bf8 {[%clk 0:02:39]} 11. Bf4 {[%clk 0:02:55]}  Nbd7 {[%clk 0:02:35]} 12. Qd2 {[%clk 0:02:54]}  a6 {[%clk 0:02:29]} 13. Rae1 {[%clk 0:02:52]}  Rxe1 {[%clk 0:02:27]} 14. Rxe1 {[%clk 0:02:53]}  Rb8 {[%clk 0:02:19]} 15. Bf1 {[%clk 0:02:45]}  Qa5 {[%clk 0:02:14]} 16. a4 {[%clk 0:02:42]}  Qc7 {[%clk 0:02:06]} 17. Bd3 {[%clk 0:02:27]}  b6 {[%clk 0:01:59]} 18. g4 {[%clk 0:02:18]}  Nh7 {[%clk 0:01:51]} 19. Bxh7+ {[%clk 0:02:03]}  Kxh7 {[%clk 0:01:50]} 20. Re8 {[%clk 0:02:04]}  Bb7 {[%clk 0:01:45]} 21. Qd3+ {[%clk 0:02:00]}  Kg8 {[%clk 0:01:44]} 22. Qe3 {[%clk 0:01:54]}  Rxe8 {[%clk 0:01:42]} 23. Qxe8 {[%clk 0:01:54]}  Nf6 {[%clk 0:01:42]} 24. Qe3 {[%clk 0:01:47]}  Qd7 {[%clk 0:01:35]} 25. Bg3 {[%clk 0:01:43]}  g6 {[%clk 0:01:30]} 26. Nd2 {[%clk 0:01:38]}  Bg7 {[%clk 0:01:30]} 27. b3 {[%clk 0:01:35]}  b5 {[%clk 0:01:06]} 28. axb5 {[%clk 0:01:33]}  axb5 {[%clk 0:01:06]} 29. Nde4 {[%clk 0:01:33]}  Nxe4 {[%clk 0:01:05]} 30. Nxe4 {[%clk 0:01:33]}  bxc4 {[%clk 0:01:05]} 31. bxc4 {[%clk 0:01:33]}  Ba6 {[%clk 0:00:52]} 32. Nxd6 {[%clk 0:01:25]}  Qa4 {[%clk 0:00:44]} 33. Qe7 {[%clk 0:01:17]}  Qa1+ {[%clk 0:00:26]} 34. Kg2 {[%clk 0:01:14]}  Qf6 {[%clk 0:00:26]} 35. Qxf6 {[%clk 0:01:10]}  Bxf6 {[%clk 0:00:27]} 36. Ne4 {[%clk 0:01:02]}  Bd8 {[%clk 0:00:26]} 37. Nxc5 {[%clk 0:00:54]}  Bxc4 {[%clk 0:00:25]} 38. d6 {[%clk 0:00:53]}  Kf8 {[%clk 0:00:24]} 39. Kf3 {[%clk 0:00:47]}  Ke8 {[%clk 0:00:24]} 40. Ke4 {[%clk 0:00:44]}  Bb6 {[%clk 0:00:25]} 41. Nd3 {[%clk 0:00:35]}  Ba6 {[%clk 0:00:12]} 42. Ne5 {[%clk 0:00:31]}  Bb7+ {[%clk 0:00:11]} 43. Kd3 {[%clk 0:00:31]}  g5 {[%clk 0:00:06]} 44. Kc4 {[%clk 0:00:27]}  Ba6+ {[%clk 0:00:03]} 45. Kb4 {[%clk 0:00:26]}  Bb7 {[%clk 0:00:01]} 46. Kb5 {[%clk 0:00:26]}  Ba7 {[%clk 0:00:01]} 47. d7+ {[%clk 0:00:21]}  Ke7 {[%clk 0:00:01]} 48. Nc6+ {[%clk 0:00:20]}  Bxc6+ {[%clk 0:00:01]} 49. Kxc6 {[%clk 0:00:21]}  Kd8 {[%clk 0:00:00]} 50. Bc7+ {[%clk 0:00:21]} 1-0


[Site "https://www.chess.com"]

[Event "Titled Tuesday Blitz July 18 Late 2023"]
[White "Priasmoro, Novendra"]
[Black "Adireddy Arjun"]
[WhiteFideId "7105029"]
[BlackFideId "25647709"]
[WhiteElo "2765"]
[BlackElo "2360"]
[Result "1-0"]
[Round "3"]
[TimeControl "180+2"]
[Date "2023.07.18"]
[WhiteClock "0:00:13"]
[BlackClock "0:00:00"]
[Board "38"]

1. e4 {[%clk 0:03:00]}  c6 {[%clk 0:02:51]} 2. d4 {[%clk 0:02:56]}  d5 {[%clk 0:02:51]} 3. e5 {[%clk 0:02:53]}  c5 {[%clk 0:02:51]} 4. dxc5 {[%clk 0:02:53]}  e6 {[%clk 0:02:48]} 5. a3 {[%clk 0:02:46]}  Bxc5 {[%clk 0:02:41]} 6. b4 {[%clk 0:02:41]}  Bb6 {[%clk 0:02:38]} 7. Qg4 {[%clk 0:02:41]}  Kf8 {[%clk 0:02:23]} 8. Nf3 {[%clk 0:02:39]}  Ne7 {[%clk 0:02:20]} 9. Bd3 {[%clk 0:02:35]}  a5 {[%clk 0:01:53]} 10. Bb2 {[%clk 0:02:31]}  axb4 {[%clk 0:01:51]} 11. axb4 {[%clk 0:02:32]}  Rxa1 {[%clk 0:01:49]} 12. Bxa1 {[%clk 0:02:33]}  Nbc6 {[%clk 0:01:44]} 13. O-O {[%clk 0:02:28]}  g6 {[%clk 0:01:39]} 14. Qf4 {[%clk 0:02:16]}  Kg7 {[%clk 0:01:14]} 15. Qf6+ {[%clk 0:01:47]}  Kg8 {[%clk 0:01:13]} 16. b5 {[%clk 0:01:48]}  Nb4 {[%clk 0:01:03]} 17. Ng5 {[%clk 0:01:34]}  Qf8 {[%clk 0:00:53]} 18. Bc3 {[%clk 0:01:31]}  Nxd3 {[%clk 0:00:53]} 19. cxd3 {[%clk 0:01:32]}  Nf5 {[%clk 0:00:41]} 20. Bb4 {[%clk 0:01:31]}  Qg7 {[%clk 0:00:37]} 21. Qxg7+ {[%clk 0:01:17]}  Kxg7 {[%clk 0:00:36]} 22. Nf3 {[%clk 0:01:11]}  h5 {[%clk 0:00:30]} 23. Nc3 {[%clk 0:01:11]}  Bd7 {[%clk 0:00:28]} 24. Na4 {[%clk 0:00:52]}  Bd8 {[%clk 0:00:27]} 25. Nc3 {[%clk 0:00:47]}  Bb6 {[%clk 0:00:27]} 26. Rb1 {[%clk 0:00:36]}  Ra8 {[%clk 0:00:17]} 27. Kf1 {[%clk 0:00:35]}  d4 {[%clk 0:00:16]} 28. Ne4 {[%clk 0:00:26]}  Bxb5 {[%clk 0:00:12]} 29. Ke2 {[%clk 0:00:27]}  Ra2+ {[%clk 0:00:10]} 30. Bd2 {[%clk 0:00:27]}  Bxd3+ {[%clk 0:00:02]} 31. Kxd3 {[%clk 0:00:24]}  Ra6 {[%clk 0:00:03]} 32. h3 {[%clk 0:00:19]}  Ra3+ {[%clk 0:00:03]} 33. Ke2 {[%clk 0:00:18]}  d3+ {[%clk 0:00:03]} 34. Ke1 {[%clk 0:00:16]}  Bd4 {[%clk 0:00:03]} 35. g4 {[%clk 0:00:15]}  hxg4 {[%clk 0:00:03]} 36. hxg4 {[%clk 0:00:16]}  Nh6 {[%clk 0:00:02]} 37. Nxd4 {[%clk 0:00:15]}  Nxg4 {[%clk 0:00:03]} 38. f4 {[%clk 0:00:13]}  Ra4 {[%clk 0:00:03]} 39. Bb4 {[%clk 0:00:12]}  Ne3 {[%clk 0:00:03]} 40. Nc3 {[%clk 0:00:09]}  Ra8 {[%clk 0:00:01]} 41. Kd2 {[%clk 0:00:10]}  Nc4+ {[%clk 0:00:02]} 42. Kxd3 {[%clk 0:00:10]}  Nb6 {[%clk 0:00:02]} 43. Bd6 {[%clk 0:00:10]}  Nc8 {[%clk 0:00:01]} 44. Rxb7 {[%clk 0:00:10]}  Nxd6 {[%clk 0:00:02]} 45. exd6 {[%clk 0:00:11]}  Rd8 {[%clk 0:00:02]} 46. Ncb5 {[%clk 0:00:11]}  Kf6 {[%clk 0:00:02]} 47. Ke4 {[%clk 0:00:12]}  g5 {[%clk 0:00:02]} 48. fxg5+ {[%clk 0:00:12]}  Kxg5 {[%clk 0:00:03]} 49. Rxf7 {[%clk 0:00:13]}  Kg6 {[%clk 0:00:02]} 50. Rf2 {[%clk 0:00:12]}  e5 {[%clk 0:00:01]} 51. Kxe5 {[%clk 0:00:12]}  Re8+ {[%clk 0:00:02]} 52. Ne6 {[%clk 0:00:13]}  Kh6 {[%clk 0:00:01]} 53. d7 {[%clk 0:00:13]}  Ra8 {[%clk 0:00:01]} 54. Nd6 {[%clk 0:00:13]}  Rb8 {[%clk 0:00:00]} 55. Kf6 {[%clk 0:00:13]} 1-0


[Site "https://www.chess.com"]